Cogmind - Beta 11 @@@ ROGUE MODE // 2022.03.17 @ 21:29:59 Player: Grimhilt Result: Destroyed by G-34 Mercenary with Small Laser Performance ------------- Evolutions (1) 500 Regions Visited (4) 800 Robots Destroyed (48) 240 Value Destroyed (1381) 1381 Prototype IDs (3) 60 Alien Tech Used (0) 0 Bonus (51) 51 TOTAL SCORE: 3032 Bonus ------- High Alert Combat Kills 51 Cogmind --------- Core Integrity 0/400 Matter 264/300 Energy 247/265 System Corruption 4% Temperature Hot (295) Movement Walking (123) Location -9/Storage Parts ------- > --- POWER (1) -------- Improved Ion Engine > --- PROPULSION (4) --- Aluminum Leg Aluminum Leg Titanium Leg > --- UTILITY (2) ------ Medium Storage Unit Drone Bay (0/2) > --- WEAPON (2) ------- Beam Cannon Light Assault Rifle > --- INVENTORY (10) --- Light Ion Engine Aluminum Leg Improved Aluminum Leg Titanium Leg Heat Sink Drone Bay (2/2) Drone Bay (2/2) Drone Bay (2/2) Peak State ------------ > --- POWER ------------ Ion Engine > --- PROPULSION ------- Improved Flight Unit Improved Flight Unit Improved Flight Unit Cooled VTOL Module > --- UTILITY ---------- Heat Sink Medium Storage Unit > --- WEAPON ----------- Medium Laser Advanced Beam Cannon > --- INVENTORY -------- Ion Engine Aluminum Leg Improved Aluminum Leg Titanium Leg Titanium Leg Titanium Leg Heat Sink Beam Cannon Light Cannon [Rating: 22] Favorites ----------- Power Ion Engine Engine Ion Engine Propulsion Aluminum Leg Leg Aluminum Leg Flight Unit Improved Flight Unit Utility Heat Sink Device Heat Sink Storage Medium Storage Unit Weapon Medium Laser Energy Gun Medium Laser Energy Cannon Beam Cannon Ballistic Gun Assault Rifle Ballistic Cannon Light Cannon Build | -11 -10 -10 -9 -9 ------- Run | Scr Mat Min Mat Sto Slots Evolved 2 | . . . 2 . Power . | . . . . . Propulsion 2 | . . . 2 . Utility . | . . . . . Weapon . | . . . . . Parts Attached 49 | 5 6 . 6 32 Power 7 | 1 . . 1 5 Engine 7 | 1 . . 1 5 Core . | . . . . . Reactor . | . . . . . Propulsion 26 | 2 2 . 5 17 Treads . | . . . . . Leg 21 | 2 2 . 5 12 Wheel . | . . . . . Hover . | . . . . . Flight 5 | . . . . 5 Utility 8 | . 3 . . 5 Device 5 | . 1 . . 4 Storage 3 | . 2 . . 1 Processor . | . . . . . Hackware . | . . . . . Protection . | . . . . . Artifact . | . . . . . Weapon 8 | 2 1 . . 5 Energy Gun 2 | 1 . . . 1 Energy Cannon 3 | . 1 . . 2 Ballistic Gun 2 | 1 . . . 1 Ballistic Cannon 1 | . . . . 1 Launcher . | . . . . . Special Weapon . | . . . . . Impact Weapon . | . . . . . Slashing Weapon . | . . . . . Piercing Weapon . | . . . . . Special Melee Weapon . | . . . . . Unidentified Prototypes 3 | . . . . 3 Parts Lost 13 | . . . . 13 Power 3 | . . . . 3 Propulsion 5 | . . . . 5 Utility 1 | . . . . 1 Weapon 4 | . . . . 4 Highest Loss Streak 7 | . . . . 7 To Critical Strikes . | . . . . . Average Slot Usage (%) 92 | . 95 100 100 89 Engine 11 | . 14 14 11 9 Leg 35 | . 28 28 44 37 Device 10 | . 10 14 11 10 Storage 11 | . 12 14 11 11 Energy Gun 5 | . 6 . . 6 Energy Cannon 8 | . 7 14 11 9 Ballistic Gun 5 | . 14 14 11 1 Ballistic Cannon 1 | . . . . 2 Naked Turns . | . . . . . Heaviest Build 29 | 9 16 16 16 29 Greatest Support 54 | 20 20 20 47 54 Greatest Overweight (x) 4 | . . . . 4 Average Overweight (x) . | . . . . . Largest Inventory Capacity 10 | 5 8 8 8 10 Average Capacity 8 | 5 7 8 8 9 Most Carried 10 | 5 8 8 8 10 Average Carried 8 | 3 7 8 7 9 Final Capacity 10 | 5 8 8 8 10 Final Carried 8 | 5 8 8 8 8 Class Distribution -------------------- 53% | Mutant 46% | Scavenger-Mutant Dominant Class ---------------- Mutant | -10/Materials Mutant | -10/Mines Mutant | -9/Materials Scavenger-Mutant | -9/Storage Resources | -11 -10 -10 -9 -9 ----------- Run | Scr Mat Min Mat Sto Matter Collected 919 | 211 198 . 76 434 Remotely . | . . . . . Salvage Created 1833 | . 359 . 106 1368 Parts 100 | . 23 . 8 69 Haulers Intercepted 3 | . 2 . . 1 Recyclers Shooed 4 | . 1 . . 3 Parts Field Recycled . | . . . . . Retrieved Matter . | . . . . . Parts Self-Destructed . | . . . . . Prevented . | . . . . . Kills | -11 -10 -10 -9 -9 ------- Run | Scr Mat Min Mat Sto Combat Hostiles Destroyed 36 | . 7 . 2 27 Guns 9 | . 5 . . 4 Cannons 25 | . 2 . 2 21 Classes Destroyed 9 | . 5 . 2 2 Worker 1 | . 1 . . . Hauler 3 | . 2 . . 1 Recycler 2 | . . . . 2 Operator 3 | . 1 . . 2 Watcher 3 | . . . 1 2 Swarmer 6 | . 3 . . 3 Grunt 16 | . 4 . 1 11 Duelist 1 | . . . . 1 Sentry 13 | . . . 1 12 Best Kill Streak 5 | . 4 . 1 5 Combat Bots Only 5 | . 3 . 1 5 Max Kills in Single Turn 1 | . 1 . 1 1 Gunslinging . | . . . . . Exploded . | . . . . . Melee . | . . . . . Uniques/NPCs Destroyed . | . . . . . Combat | -11 -10 -10 -9 -9 -------- Run | Scr Mat Min Mat Sto Damage Taken 2364 | . 157 . 118 2089 Core 457 | . 51 . 30 376 Absorbed by Shields . | . . . . . Regen/Repaired (Parts) 12 | . 12 . . . Core Remaining (%) 89 | 100 . 79 . . Volleys Fired 160 | . 33 . 12 115 Largest 2 | . 2 . 2 2 Hottest 118 | . 80 . 80 118 Shots Fired 280 | . 66 . 24 190 Gun 139 | . 51 . 12 76 Cannon 141 | . 15 . 12 114 Launcher . | . . . . . Special . | . . . . . Kinetic 98 | . 33 . 12 53 Thermal 182 | . 33 . 12 137 Explosive . | . . . . . Electromagnetic . | . . . . . Robot Hit Streak 18 | . 9 . 4 18 Robot Miss Streak 8 | . 7 . 3 8 Penetration Max . | . . . . . Secondary Targets . | . . . . . Shots Hit Robots 177 | . 38 . 14 125 Core Hits 71 | . 16 . 4 51 Critical Kills 1 | . . . . 1 Critical Parts Destroyed . | . . . . . Critical Strikes 6 | . . . . 6 Burn 4 | . . . . 4 Meltdown 1 | . . . . 1 Blast 1 | . . . . 1 Melee Attacks . | . . . . . Impact . | . . . . . Slashing . | . . . . . Piercing . | . . . . . Sneak Attacks . | . . . . . Combat Hostiles . | . . . . . Follow-up Attacks . | . . . . . Damage Inflicted 2687 | . 458 . 193 2036 Guns 1060 | . 318 . 88 654 Cannons 1627 | . 140 . 105 1382 Explosions . | . . . . . Melee . | . . . . . Ramming . | . . . . . Kinetic 851 | . 194 . 88 569 Thermal 1836 | . 264 . 105 1467 Explosive . | . . . . . Electromagnetic . | . . . . . Impact . | . . . . . Slashing . | . . . . . Piercing . | . . . . . Highest Corruption 4 | . . . . 4 Average Corruption 3 | . . . . 3 Corruption Purged . | . . . . . Corruption Blocked . | . . . . . Effects 3 | . . . . 3 Message Errors 1 | . . . . 1 Energy Discharges 2 | . . . . 2 Overload Shots . | . . . . . Overflow Damage 12 | . . . . 12 Projectiles 12 | . . . . 12 Explosions . | . . . . . Melee . | . . . . . Knockbacks . | . . . . . Impact . | . . . . . Kinetic . | . . . . . Secondary . | . . . . . Self-Inflicted Damage . | . . . . . Shots . | . . . . . Rammed . | . . . . . Targets Rammed . | . . . . . Kicked . | . . . . . Crushed . | . . . . . Highest Temperature 311 | . 69 . 2 311 Average Temperature 76 | . 19 . 2 88 Received Heat Transfer 780 | . 48 . 33 699 Effects 3 | . . . . 3 Energy Bleed 1 | . . . . 1 Interference 2 | . . . . 2 Siege Activations . | . . . . . Robots Corrupted . | . . . . . Combat Hostiles . | . . . . . Parts Fried . | . . . . . Impact Corruptions . | . . . . . Robots Melted 3 | . . . . 3 Combat Hostiles 2 | . . . . 2 Parts Melted 8 | . . . 1 7 Heat Transferred 4551 | . 666 . 222 3663 Parts Sabotaged . | . . . . . Parts Stolen . | . . . . . Parts Stripped . | . . . . . Power Chain Reactions . | . . . . . Missiles Intercepted . | . . . . . Alert | -11 -10 -10 -9 -9 ------- Run | Scr Mat Min Mat Sto Peak Influence 461 | . 125 30 150 461 Initial 63 | . . 30 11 63 Average 162 | . 53 30 73 228 Maximum Alert Level 2 | . . . . 2 Low Security (%) 60 | 100 100 100 100 35 Level 1 32 | . . . . 52 Level 2 7 | . . . . 12 Level 3 . | . . . . . Level 4 . | . . . . . Level 5 . | . . . . . High Security . | . . . . . Max Security . | . . . . . Squads Dispatched 12 | . 2 . 1 9 Investigation 3 | . 1 . 1 1 Extermination . | . . . . . Reinforcement 3 | . 1 . . 2 Assault . | . . . . . Garrison 6 | . . . . 6 Intercept . | . . . . . Searches Triggered . | . . . . . Construction Impeded . | . . . . . Haulers Reinforced . | . . . . . Active Scanning Responses . | . . . . . Cargo Convoy Interrupts . | . . . . . Stealth | -11 -10 -10 -9 -9 --------- Run | Scr Mat Min Mat Sto Distress Signals 1 | . . . . 1 Communications Jammed . | . . . . . Distress Signals . | . . . . . Times Spotted 49 | . 14 . 4 31 Peak Tracking Total 5 | . 3 . 2 5 Tactical Retreats 1 | . 1 . . . Traps | -11 -10 -10 -9 -9 ------- Run | Scr Mat Min Mat Sto Traps Triggered 4 | . 1 . 1 2 Indirectly . | . . . . . Trap Hack Attempts . | . . . . . Triggered . | . . . . . Disarmed . | . . . . . Reprogrammed . | . . . . . Reused . | . . . . . Traps Extracted . | . . . . . Installed . | . . . . . Triggered . | . . . . . Machines | -11 -10 -10 -9 -9 ---------- Run | Scr Mat Min Mat Sto Machines Disabled 3 | . . . 1 2 Max in Single Turn 1 | . . . 1 1 Machines Sabotaged . | . . . . . Garrisons Compromised . | . . . . . Overloaded Fab Kills . | . . . . . Hacking | -11 -10 -10 -9 -9 --------- Run | Scr Mat Min Mat Sto Machines Accessed 11 | . 3 . 3 5 Terminals 8 | . 1 . 2 5 Fabricators . | . . . . . Repair Stations 1 | . 1 . . . Recycling Units 2 | . 1 . 1 . Scanalyzers . | . . . . . Garrison Access . | . . . . . Total Hacks 21 | . 5 . 4 12 Successful 11 | . 4 . 3 4 Failed 10 | . 1 . 1 8 Catastrophic 1 | . . . . 1 Database Lockouts . | . . . . . Manual 1 | . . . . 1 Terminals 17 | . 2 . 3 12 Fabricators . | . . . . . Repair Stations 2 | . 2 . . . Recycling Units 2 | . 1 . 1 . Scanalyzers . | . . . . . Garrison Access . | . . . . . Terminal Hacks 7 | . 1 . 2 4 Record 3 | . 1 . 1 1 Open Door 2 | . . . . 2 Alert Level 1 | . . . 1 . Zone Layout 1 | . . . . 1 Fabricator Hacks . | . . . . . Repair Station Hacks 2 | . 2 . . . Scan Component 1 | . 1 . . . Repair 1 | . 1 . . . Recycling Unit Hacks 2 | . 1 . 1 . Report Inventory 1 | . 1 . . . Retrieve Components 1 | . . . 1 . Scanalyzer . | . . . . . Garrison Access Hacks . | . . . . . Unauthorized Hacks . | . . . . . Terminals . | . . . . . Fabricators . | . . . . . Repair Stations . | . . . . . Recycling Units . | . . . . . Scanalyzers . | . . . . . Garrison Access . | . . . . . Data Cores Recovered 1 | . 1 . . . Used . | . . . . . Hacking Detections 4 | . . . 1 3 Full Trace Events 1 | . . . . 1 Feedback Events . | . . . . . Feedback Blocked . | . . . . . Robot Schematics Acquired . | . . . . . Robots Built . | . . . . . Authchips . | . . . . . Time . | . . . . . Total Robot Build Rating . | . . . . . Part Schematics Acquired . | . . . . . Parts Built . | . . . . . Authchips . | . . . . . Time . | . . . . . Total Part Build Rating . | . . . . . Parts Repaired 1 | . 1 . . . Time 26 | . 26 . . . Parts Recycled . | . . . . . Recycled Matter . | . . . . . Retrieved Matter . | . . . . . Retrieved Components 1 | . . . 1 . Parts Scanalyzed . | . . . . . Part Schematics Acquired . | . . . . . Parts Damaged . | . . . . . Bothacking | -11 -10 -10 -9 -9 ------------ Run | Scr Mat Min Mat Sto Used RIF Installer . | . . . . . Robots Hacked . | . . . . . Non-combat . | . . . . . Combat . | . . . . . Robot Hacks Applied . | . . . . . Relay Couplers Released . | . . . . . Fabnet Peak Effective % . | . . . . . Robots Rewired . | . . . . . Allies Hacked . | . . . . . Hacks Repelled . | . . . . . Allies | -11 -10 -10 -9 -9 -------- Run | Scr Mat Min Mat Sto Total Allies . | . . . . . Largest Group . | . . . . . Highest-Rated Group . | . . . . . Highest-Rated Ally . | . . . . . Total Orders . | . . . . . Ally Attacks . | . . . . . Total Damage . | . . . . . Kills . | . . . . . Allies Corrupted 1 | . . . . 1 Allies Melted . | . . . . . Intel | -11 -10 -10 -9 -9 ------- Run | Scr Mat Min Mat Sto Robot Analysis Total . | . . . . . Derelict Logs Recovered 1 | . . 1 . . Drone Launches 5 | . . . . 5 Drone Recoveries 1 | . . . . 1 Exploration | -11 -10 -10 -9 -9 ------------- Run | Scr Mat Min Mat Sto Turns Passed 2299 | 61 495 45 283 1415 Spaces Moved 1294 | 48 277 38 195 736 Core 20 | 15 . . . 5 Treads . | . . . . . Legs 1264 | 33 277 38 195 721 Wheels . | . . . . . Hover . | . . . . . Flight 10 | . . . . 10 Fastest Speed 50 | 50 120 120 120 100 Average Speed 124 | 98 120 120 121 128 Slowest Speed 350 | 120 120 120 122 350 Overloaded Moves . | . . . . . Propulsion Burnouts . | . . . . . Robots Hopped . | . . . . . Cave-ins Triggered . | . . . . . Exploration Rate (%) 31 | 3 52 12 15 73 Regions Visited 4 Branch Regions 2 Pre-discovered Areas 1 | . . 1 . . Known Exits Taken . | . . . . . Unknown Exits Taken 4 | 1 1 1 1 . Scrap Searched . | . . . . . Spaces Dug . | . . . . . Terrain Destroyed . | . . . . . Melee . | . . . . . Projectile . | . . . . . AOE . | . . . . . Terrain Rammed . | . . . . . Walls Destroyed . | . . . . . Machines Disabled . | . . . . . Actions | -11 -10 -10 -9 -9 --------- Run | Scr Mat Min Mat Sto Total 1718 | 62 374 37 220 1025 Wait 147 | . 42 . . 105 Move 1290 | 47 276 37 194 736 Hop . | . . . . . Pick Up 42 | 10 12 . 3 17 Fast Attach 9 | . 1 . . 8 Attach 22 | 5 2 . 2 13 Detach . | . . . . . Swap 18 | . 3 . 4 11 Drop 30 | . 5 . 5 20 Fire 160 | . 33 . 12 115 Melee . | . . . . . Ram . | . . . . . Kick . | . . . . . Crush . | . . . . . Escape Stasis . | . . . . . Rewire . | . . . . . Trap . | . . . . . Miscellaneous . | . . . . . Route ------- -11/Scrapyard -10/Materials (discovered 2 exits: *Mat / [*Min]) -10/Mines -9/Materials -9/Storage History --------- Turn | Location | Event 16 | -11/Scrapyard | Discovered new exit (range 15) 62 | -11/Scrapyard | Entered Materials 319 | -10/Materials | Discovered new exit (range 15) 336 | -10/Materials | Build established: Mutant 478 | -10/Materials | Repaired Sml. Storage Unit 543 | -10/Materials | Discovered new exit (range 11) 557 | -10/Materials | Entered Mines 584 | -10/Mines | Discovered new exit (range 13) 587 | -10/Mines | Learned location of Zion (-7) 602 | -10/Mines | Entered Materials 602 | -9/Materials | Evolved 2 slots: Propulsion x2 677 | -9/Materials | Discovered new exit (range 6) 885 | -9/Materials | Entered Storage 1069 | -9/Storage | Lost 3 parts (1p1n1w) 1354 | -9/Storage | Build established: Scavenger-Mutant 1534 | -9/Storage | Garrison activated, responded to threat 1857 | -9/Storage | Garrison activated, responded to threat 1931 | -9/Storage | Core integrity fell below 50% 1985 | -9/Storage | Core integrity fell below 20% 2039 | -9/Storage | Lost 7 parts (1p4n1u1w) 2276 | -9/Storage | Build established: Mutant 2300 | -9/Storage | Destroyed by G-34 Mercenary with Small Laser Last Messages --------------- 02236_ >> Lost connection to Drone. 02237_ >> Reconnected with Drone. 02237_ Acquired 14 matter. 02238_ Drone released from Drone Bay. 02241_ Acquired 6 matter. 02243_ Acquired 15 matter. 02244_ Connecting with Door Terminal... 02244_ ALERT: Suspicious activity at Terminal S008. Dispatching Investigation squad. 02260_ System corrupted: Energy discharge (-106). 02267_ Drone retrieved by Drone Bay. 02268_ Drone released from Drone Bay. 02269_ G-34 Mercenary destroyed. 02275_ Lgt. Cannon destroyed. 02275_ U-05 Engineer lays Concrete. 02279_ U-05 Engineer builds a Door. 02283_ G-34 Mercenary destroyed. 02284_ U-05 Engineer lays Concrete. 02288_ 0DFKD, A3DKZOK/XHSNMPTJR JX|NTUL1 02296_ Overheating: Energy bleed (-39). Map ----- +----------------------------------------------------+ | "?????? | | ! "?????? | | ! ##### #######+####"?????? | | ### ############ #????????? | | ??# # ### """"" #????????? | | ??# + #"" """"" #????????? | | ??# # """ #"" """"" #????????? | | ??# # """ #"T #????????? | | ??# # """ #"" """"" #????????? | | ??# # ! """ #"" """"" #????????? | | ??# # """ ### """"" #????????? | | ??+ + #?# #????????? | | ??# # #?# #????????? | | ??## ##+#######?# #????????? | | ???# #################### #???? | | ???# #???? | | ???# ##+###### #?????????? | | ???# # ???# #?????????? | | ???# # !!?+ ##????????? | | ???#%# [ ######## ########?? | | ???# # ! #??????#u #?? | | ???# # !#??????# nn #?? | | ??##+#########???######n #?? | | ??# #????#T# ^ #?? | | ### """""" #????" +== #?? | | # "????" #????"=# ! @ #?? | | # "????" #????" # #?? | | = / """""" #????######### #?? | | # #????????????# #?? | | # #????????????# #?? | | ## #????????????# #?? | | ############????????????# #?? | | #???????????????????????# #?? | | #???????????????????????# % #?? | | #??????????????????????? %* #?? | | #???????????????????????###*% #?? | | #??????????????????????????#g##?? | | #??????????????????????????? #??? | | #??????????????????????????? #??? | | #??????????????????????????? #??? | | ??????????????????????????? #??? | | ??????????????????????????? #??? | | ?????????????????????????????#??? | | ?????????????????????????????????? | | ?????????????????????????????????? | | ?????????????????????????????????? | | ?????????????????????????????????? | | ?????????????????????????????????? | | ?????????????????????????????????? | | ?????????????????????????????????? | +----------------------------------------------------+ Best States ------------- Heat Dissipation 38 Energy Generation 12 Energy Capacity 265 Matter Stores 300 Matter Capacity 300 Sight Range 16 Terrain Scan Density 10 Evasion (%) 55 Item Schematics ----------------- None Robot Schematics ------------------ None Fabricated ------------ Nothing Alien Tech Used ----------------- None Achievements -------------- None Challenges ------------ None Game ------ Seed SignalRelayArmor Manual? 0 Play Time 00:24:01 Cumulative 18.4 hours Start 2022.03.17 @ 21:06:03 End 2022.03.17 @ 21:29:59 Sessions 1 Manual Loads 0 Difficulty Rogue Special Mode None Game No. 31 Rogue 31 Adventurer 0 Explorer 0 Win Type - Total 0 Types 0/0/0/0/0/0/0/0/0 Lore% 24 Gallery% 23 Achievement% 19 Wizard Run 0 Options --------- ASCII 0 Keyboard 0 Movement Mouse Keybinds 0 Fullscreen 2 Font 18/X11 Map View 76x50 Tactical HUD 1 Map Filters NONE Filters NONE Steam 1 RUN: d33f7dee-a330-498c-90b8-2b28e9ee4dc9